fUST/lending_fUST_20250101
["ID","MTS","AMOUNT","RATE_DAILY","PERIOD"]
[347292666,1735662642053,-581.96,0.00019452,3]
[347292667,1735662642062,-603.77,0.00019452,3]
[347292668,1735662642072,-1525.37,0.00019452,3]
[347292669,1735662642081,-500.0,0.00019452,3]
[347292670,1735662642092,-500.0,0.00019452,3]
[347292671,1735662642101,-500.0,0.00019452,3]
[347292672,1735662642111,-993.47,0.00019452,3]
[347292673,1735662642277,-522.07,0.00019452,3]
[347292674,1735662642295,-1506.03,0.00019452,3]
[347292675,1735662642305,-575.2,0.00019452,3]
[347292676,1735662642314,-257.79901667,0.00019452,3]
[347292677,1735662642323,-1121.02,0.00019452,3]
[347292678,1735662642332,-500.0,0.00019452,3]
[347292679,1735662642342,-5314.68,0.00019452,3]
[347292680,1735662642351,-500.0,0.00019452,3]
[347292681,1735662642360,-500.0,0.00019452,3]
[347292682,1735662642369,-500.0,0.00019452,3]
[347292683,1735662642378,-1035.64,0.00019452,3]
[347292684,1735662642387,-500.0,0.00019452,3]
[347292685,1735662642396,-500.0,0.00019452,3]
[347292686,1735662642405,-500.0,0.00019452,3]
[347292687,1735662642415,-588.51,0.00019452,3]
[347292688,1735662642423,-500.0,0.00019452,3]
[347292689,1735662642433,-500.0,0.00019452,3]
[347292690,1735662642443,-500.0,0.00019452,3]
[347292691,1735662642451,-500.0,0.00019452,3]
[347292692,1735662642460,-4021.99,0.00019452,3]
[347292693,1735662642470,-500.0,0.00019452,3]
[347292694,1735662642479,-500.0,0.00019452,3]
[347292695,1735662642488,-500.0,0.00019452,3]
[347292696,1735662642497,-500.0,0.00019452,3]
[347292697,1735662642506,-689.25,0.00019452,3]
[347292698,1735662642515,-500.0,0.00019452,3]
[347292699,1735662642525,-548.01,0.00019452,3]
[347292700,1735662642534,-500.0,0.00019452,3]
[347292701,1735662642543,-500.0,0.00019452,3]
[347292702,1735662642552,-500.0,0.00019452,3]
[347292703,1735662642562,-500.0,0.00019452,3]
[347292704,1735662642571,-500.0,0.00019473,2]
[347292705,1735662642580,-5473.35,0.000195,2]
[347292706,1735662642590,-10090.25,0.000195,2]
[347292707,1735662642599,-1974.36,0.000195,2]
[347292708,1735662642608,-315.22166014,0.00019613,2]
[347292709,1735662642618,-500.0,0.00019719,2]
[347292710,1735662642627,-1000.0,0.00019721,2]
[347292711,1735662642636,-1000.0,0.00019721,2]
[347292712,1735662642645,-500.0,0.00019726,3]
[347292713,1735662642654,-676.79,0.00019726,3]
[347292714,1735662642663,-500.0,0.00019726,3]
[347292715,1735662642672,-500.0,0.00019726,2]
[347292716,1735662642681,-500.0,0.00019726,3]
[347292717,1735662642690,-500.0,0.00019726,3]
[347292718,1735662642700,-500.0,0.00019726,3]
[347292719,1735662642709,-500.0,0.00019726,3]
[347292720,1735662642718,-500.0,0.00019726,3]
[347292721,1735662642727,-500.0,0.00019726,3]
[347292722,1735662642736,-500.0,0.00019726,3]
[347292723,1735662642745,-500.0,0.00019726,3]
[347292724,1735662642755,-732.46,0.00019726,3]
[347292725,1735662642767,-500.0,0.00019726,3]
[347292726,1735662642777,-500.0,0.00019726,3]
[347292727,1735662642786,-500.0,0.00019726,3]
[347292728,1735662642795,-500.0,0.00019726,3]
[347292729,1735662642804,-477.74748275,0.00019726,3]
[347292730,1735662642814,-500.0,0.00019726,3]
[347292731,1735662642823,-500.0,0.00019726,3]
[347292732,1735662642833,-500.0,0.00019726,3]
[347292733,1735662642842,-500.0,0.00019726,3]
[347292734,1735662642851,-500.0,0.00019726,3]
[347292735,1735662642860,-822.0,0.00019726,3]
[347292736,1735662642869,-500.0,0.00019726,3]
[347292737,1735662642878,-500.0,0.00019726,3]
[347292738,1735662642887,-722.21,0.00019726,3]
[347292739,1735662642896,-500.0,0.00019726,3]
[347292740,1735662642905,-500.0,0.00019726,3]
[347292741,1735662642914,-653.4,0.00019726,3]
[347292742,1735662642923,-500.0,0.00019726,3]
[347292743,1735662642932,-504.84278697,0.00019726,3]
[347292744,1735662642941,-500.0,0.00019726,3]
[347292745,1735662642950,-500.0,0.00019726,3]
[347292746,1735662642959,-500.0,0.00019726,3]
[347292747,1735662642968,-500.0,0.00019726,3]
[347292748,1735662642977,-500.0,0.00019726,3]
[347292749,1735662642986,-680.61,0.00019726,3]
[347292750,1735662642995,-500.0,0.00019726,3]
[347292751,1735662643005,-596.71581186,0.00019726,3]
[347292752,1735662643014,-500.0,0.00019726,3]
[347292753,1735662643023,-385.39122533,0.00019726,3]
[347292754,1735662643032,-1080.08,0.00019726,3]
[347292755,1735662643041,-500.0,0.00019726,3]
[347292756,1735662643050,-500.0,0.00019726,3]
[347292757,1735662643059,-500.0,0.00019726,3]
[347292758,1735662643068,-504.62763379,0.00019726,3]
[347292759,1735662643077,-500.0,0.00019726,3]
[347292760,1735662643085,-500.0,0.00019726,3]
[347292761,1735662643094,-500.0,0.00019726,3]
[347292762,1735662643103,-500.0,0.00019726,3]
[347292763,1735662643112,-500.0,0.00019726,3]
[347292764,1735662643121,-500.0,0.00019726,3]
[347292765,1735662643130,-500.0,0.00019726,3]
[347292766,1735662643139,-534.89940103,0.00019726,3]
[347292767,1735662643148,-605.3447252,0.00019726,3]
[347292768,1735662643158,-500.0,0.00019726,3]
[347292769,1735662643167,-277.99055866,0.00019726,3]
[347292770,1735662643176,-1024.57,0.00019726,3]
[347292771,1735662643185,-500.0,0.00019726,3]
[347292772,1735662643195,-500.0,0.00019726,3]
[347292773,1735662643204,-2010.2,0.00019726,3]
[347292774,1735662643214,-500.0,0.00019726,3]
[347292776,1735662643223,-7010.34,0.00019726,3]
[347292778,1735662643233,-500.0,0.00019726,3]
[347292779,1735662643243,-500.0,0.00019726,3]
[347292780,1735662643252,-500.0,0.00019726,3]
[347292781,1735662643264,-10949.33,0.00019726,3]
[347292782,1735662643274,-500.0,0.00019726,3]
[347292783,1735662643284,-500.0,0.00019726,3]
[347292784,1735662643294,-500.0,0.00019726,3]
[347292785,1735662643303,-500.0,0.00019726,3]
[347292788,1735662643312,-599.72,0.00019726,3]
[347292790,1735662643321,-1085.45,0.00019726,3]
[347292792,1735662643331,-605.99,0.00019726,3]
[347292793,1735662643340,-629.41,0.00019726,2]
[347292795,1735662643349,-1147.06,0.00019726,3]
[347292796,1735662643358,-500.0,0.00019726,3]
[347292797,1735662643368,-527.71,0.00019726,3]
[347292798,1735662643377,-500.0,0.00019726,3]
[347292799,1735662643386,-500.0,0.00019726,3]
[347292801,1735662643395,-500.0,0.00019726,3]
[347292803,1735662643404,-500.0,0.00019726,3]
[347292805,1735662643413,-500.0,0.00019726,3]
[347292807,1735662643423,-637.7871382,0.00019726,3]
[347292809,1735662643432,-500.0,0.00019726,3]
[347292811,1735662643441,-500.0,0.00019726,3]
[347292813,1735662643450,-570.43,0.00019726,3]
[347292815,1735662643459,-10934.46,0.00019726,3]
[347292816,1735662643468,-709.83,0.00019726,3]
[347292817,1735662643477,-500.0,0.00019726,3]
[347292818,1735662643487,-500.0,0.00019726,3]
[347292819,1735662643496,-695.57,0.00019726,3]
[347292820,1735662643505,-500.0,0.00019726,3]
[347292821,1735662643515,-500.0,0.00019726,3]
[347292822,1735662643524,-500.0,0.00019726,3]
[347292823,1735662643534,-500.0,0.00019726,3]
[347292824,1735662643543,-1020.13,0.00019726,3]
[347292825,1735662643552,-489.06230314,0.00019726,3]
[347292826,1735662643562,-3413.96,0.00019726,3]
[347292827,1735662643572,-500.0,0.00019726,3]
[347292828,1735662643582,-507.66078062,0.00019726,3]
[347292829,1735662643591,-633.22,0.00019726,3]
[347292830,1735662643601,-500.0,0.00019726,3]
[347292831,1735662643610,-500.0,0.00019726,3]
[347292832,1735662643620,-500.0,0.00019726,3]
[347292833,1735662643629,-1197.53,0.00019726,3]
[347292834,1735662643638,-500.0,0.00019726,3]
[347292835,1735662643648,-500.0,0.00019726,3]
[347292836,1735662643657,-500.0,0.00019726,3]
[347292837,1735662643667,-500.0,0.00019726,3]
[347292838,1735662643676,-668.37,0.00019726,3]
[347292839,1735662643685,-1666.23,0.00019726,3]
[347292840,1735662643695,-1279.41,0.00019726,3]
[347292841,1735662643704,-500.0,0.00019726,3]
[347292842,1735662643713,-500.0,0.00019726,3]
[347292843,1735662643723,-500.0,0.00019726,3]
[347292844,1735662643733,-500.0,0.00019726,3]
[347292845,1735662643741,-500.0,0.00019726,3]
[347292846,1735662643751,-500.0,0.00019726,3]
[347292847,1735662643765,-1508.05,0.00019726,3]
[347292848,1735662643775,-1002.24,0.00019726,3]
[347292849,1735662643784,-681.96,0.00019726,3]
[347292850,1735662643793,-500.0,0.00019726,3]
[347292851,1735662643804,-500.0,0.00019726,3]
[347292852,1735662643814,-500.0,0.00019726,3]
[347292853,1735662643823,-500.0,0.00019726,3]
[347292854,1735662643832,-502.22447374,0.00019726,3]
[347292855,1735662643841,-500.0,0.00019726,3]
[347292856,1735662643851,-500.0,0.00019726,3]
[347292857,1735662643860,-500.0,0.00019726,3]
[347292858,1735662643869,-500.0,0.00019726,3]
[347292859,1735662643878,-1257.65,0.00019726,3]
[347292860,1735662643888,-500.0,0.00019726,3]
[347292861,1735662643897,-963.36,0.00019726,3]
[347292862,1735662643906,-716.23,0.00019726,3]
[347292863,1735662643915,-503.76093126,0.00019726,3]
[347292864,1735662643924,-500.0,0.00019726,3]
[347292865,1735662643933,-500.0,0.00019726,3]
[347292866,1735662643942,-500.0,0.00019726,3]
[347292867,1735662643952,-188.0,0.00019726,2]
[347292868,1735662643961,-1742.86,0.00019726,3]
[347292869,1735662643970,-500.0,0.00019726,3]
[347292870,1735662643980,-856.35,0.00019726,3]
[347292871,1735662643989,-500.0,0.00019726,3]
[347292872,1735662643999,-500.0,0.00019726,3]
[347292873,1735662644009,-1434.36,0.00019726,3]
[347292874,1735662644019,-2488.22,0.00019726,3]
[347292875,1735662644028,-500.0,0.00019726,3]
[347292876,1735662644038,-500.0,0.00019726,3]
[347292877,1735662644047,-1740.67,0.00019726,3]
[347292878,1735662644057,-500.0,0.00019726,3]
[347292879,1735662644066,-539.03,0.00019726,3]
[347292881,1735662644075,-500.0,0.00019726,3]
[347292882,1735662644084,-1044.99,0.00019726,3]
[347292884,1735662644094,-1735.88,0.00019726,3]
[347292886,1735662644103,-500.0,0.00019726,3]
[347292888,1735662644112,-500.0,0.00019726,3]
[347292890,1735662644122,-500.0,0.00019726,3]
[347292892,1735662644131,-1193.26,0.00019726,3]
[347292893,1735662644140,-500.0,0.00019726,3]
[347292895,1735662644149,-500.0,0.00019726,3]
[347292896,1735662644159,-930.72,0.00019726,3]
[347292897,1735662644168,-500.0,0.00019726,3]
[347292898,1735662644178,-730.35,0.00019726,3]
[347292899,1735662644187,-938.16,0.00019726,3]
[347292900,1735662644197,-500.0,0.00019726,3]
[347292901,1735662644206,-1142.17,0.00019726,3]
[347292902,1735662644215,-1023.34,0.00019726,3]
[347292903,1735662644224,-500.0,0.00019726,3]
[347292904,1735662644234,-661.46,0.00019726,3]
[347292905,1735662644244,-500.0,0.00019726,3]
[347292906,1735662644253,-1070.42,0.00019726,3]
[347292907,1735662644263,-1262.96,0.00019726,3]
[347292908,1735662644273,-589.92,0.00019726,3]
[347292909,1735662644282,-1803.17,0.00019726,3]
[347292910,1735662644291,-500.0,0.00019726,3]
[347292911,1735662644301,-500.0,0.00019726,3]
[347292912,1735662644311,-500.0,0.00019726,3]
[347292913,1735662644320,-3968.83,0.00019726,3]
[347292914,1735662644329,-1255.69,0.00019726,3]
[347292916,1735662644339,-500.0,0.00019726,3]
[347292918,1735662644348,-500.0,0.00019726,3]
[347292920,1735662644357,-1236.91,0.00019726,3]
[347292921,1735662644366,-500.0,0.00019726,3]
[347292923,1735662644376,-500.0,0.00019726,3]
[347292924,1735662644385,-500.0,0.00019726,3]
[347292925,1735662644395,-514.34,0.00019726,3]
[347292926,1735662644403,-1076.36,0.00019726,3]
[347292927,1735662644413,-500.0,0.00019726,3]
[347292928,1735662644422,-500.0,0.00019726,3]
[347292930,1735662644433,-500.0,0.00019726,3]
[347292932,1735662644442,-500.0,0.00019726,3]
[347292933,1735662644451,-500.0,0.00019726,3]
[347292934,1735662644460,-1079.59,0.00019726,3]
[347292935,1735662644469,-500.0,0.00019726,3]
[347292936,1735662644479,-500.0,0.00019726,3]
[347292938,1735662644488,-492.28703826,0.00019726,3]
[347292940,1735662644497,-500.0,0.00019726,3]
[347292941,1735662644507,-562.62,0.00019726,3]
[347292943,1735662644516,-989.65,0.00019726,3]
[347292944,1735662644525,-2103.77,0.00019726,3]
[347292945,1735662644535,-874.7,0.00019726,3]
[347292947,1735662644545,-7064.59,0.00019726,3]
[347292949,1735662644555,-500.0,0.00019726,3]
[347292950,1735662644564,-2550.38,0.00019726,3]
[347292951,1735662644574,-500.0,0.00019726,3]
[347292952,1735662644583,-500.0,0.00019726,3]
[347292953,1735662644593,-1088.36,0.00019726,3]
[347292954,1735662644602,-503.47725766,0.00019726,3]
[347292955,1735662644611,-660.49,0.00019726,3]
[347292956,1735662644621,-500.0,0.00019726,3]
[347292957,1735662644630,-500.0,0.00019726,3]
[347292958,1735662644639,-2577.05,0.00019726,3]
[347292960,1735662644648,-32768.76082499,0.00019726,3]
[347292963,1735662644910,-463.60001,0.00019726,3]
[347292965,1735662644931,-500.0,0.00019178,2]
[347292966,1735662644940,-23914.66916501,0.00019726,3]
[347292968,1735662644950,-500.0,0.00019726,3]
[347292969,1735662644959,-500.0,0.00019726,3]
[347292970,1735662644969,-2166.97,0.00019726,3]
[347292971,1735662644978,-500.0,0.00019726,3]
[347292972,1735662644988,-1475.83,0.00019726,3]
[347292973,1735662644997,-500.0,0.00019726,3]
[347292974,1735662645008,-500.0,0.00019726,3]
[347292975,1735662645018,-1016.35,0.00019726,3]
[347292976,1735662645027,-581.96,0.00019726,3]
[347292977,1735662645036,-603.77,0.00019726,3]
[347292978,1735662645047,-1525.37,0.00019726,3]
[347292979,1735662645056,-500.0,0.00019726,3]
[347292980,1735662645068,-500.0,0.00019726,3]
[347292981,1735662645078,-500.0,0.00019726,3]
[347292982,1735662645089,-993.47,0.00019726,3]
[347292983,1735662645099,-522.07,0.00019726,3]
[347292984,1735662645110,-1506.03,0.00019726,3]
[347292985,1735662645119,-575.2,0.00019726,3]
[347292986,1735662645130,-1121.02,0.00019726,3]
[347292987,1735662645141,-500.0,0.00019726,3]
[347292988,1735662645152,-5314.68,0.00019726,3]
[347292989,1735662645161,-500.0,0.00019726,3]
[347292990,1735662645171,-500.0,0.00019726,3]
[347292991,1735662645181,-500.0,0.00019726,3]
[347292992,1735662645191,-1035.64,0.00019726,3]
[347292993,1735662645201,-500.0,0.00019726,3]
[347292994,1735662645211,-500.0,0.00019726,3]
[347292995,1735662645221,-588.51,0.00019726,3]
[347292996,1735662645230,-379.67317922,0.00019726,3]
[347292997,1735662645239,-500.0,0.00019726,3]
[347292998,1735662645249,-500.0,0.00019726,3]
[347292999,1735662645260,-500.0,0.00019726,3]
[347293000,1735662645270,-4021.99,0.00019726,3]
[347293001,1735662645280,-500.0,0.00019726,3]
[347293002,1735662645289,-500.0,0.00019726,3]
[347293003,1735662645299,-500.0,0.00019726,3]
[347293004,1735662645308,-500.0,0.00019726,3]
[347293005,1735662645318,-689.25,0.00019726,3]
[347293006,1735662645327,-500.0,0.00019726,3]
[347293007,1735662645337,-548.01,0.00019726,3]
[347293008,1735662645346,-500.0,0.00019726,3]
[347293009,1735662645355,-500.0,0.00019726,3]
[347293010,1735662645365,-420.0,0.00019748,2]
[347293011,1735662645374,-315.22166014,0.00019791,2]
[347293012,1735662645383,-953.32232147,0.00019878,2]
[347293013,1735662645392,-182.0,0.0001994,2]
[347293014,1735662645401,-152.46,0.0001994,2]
[347293015,1735662645411,-315.22166014,0.00019969,2]
[347293016,1735662645420,-169.94,0.00019982,2]
[347293017,1735662645430,-1073.79963558,0.00019988,2]
[347293018,1735662645440,-500.0,0.0002,3]
[347293019,1735662645449,-676.79,0.0002,3]
[347293020,1735662645458,-500.0,0.0002,3]
[347293021,1735662645467,-500.0,0.0002,2]
[347293022,1735662645476,-500.0,0.0002,3]
[347293023,1735662645485,-500.0,0.0002,3]
[347293024,1735662645495,-500.0,0.0002,3]
[347293025,1735662645504,-500.0,0.0002,3]
[347293026,1735662645515,-500.0,0.0002,3]
[347293027,1735662645524,-502.97312295,0.0002,3]
[347293028,1735662645533,-500.0,0.0002,3]
[347293029,1735662645542,-513.68988886,0.0002,3]
[347293030,1735662645553,-732.46,0.0002,3]
[347293031,1735662645562,-500.0,0.0002,3]
[347293032,1735662645571,-500.0,0.0002,3]
[347293033,1735662645581,-500.0,0.0002,3]
[347293034,1735662645590,-500.0,0.0002,3]
[347293035,1735662645599,-342.16437428,0.0002,3]
[347293036,1735662645608,-500.0,0.0002,3]
[347293037,1735662645617,-500.0,0.0002,3]
[347293038,1735662645627,-500.0,0.0002,3]
[347293039,1735662645636,-500.0,0.0002,3]
[347293040,1735662645645,-822.0,0.0002,3]
[347293041,1735662645655,-500.0,0.0002,3]
[347293042,1735662645664,-647.05764621,0.0002,3]
[347293043,1735662645674,-722.21,0.0002,3]
[347293044,1735662645683,-500.0,0.0002,3]
[347293045,1735662645693,-510.64867028,0.0002,3]
[347293046,1735662645702,-653.4,0.0002,3]
[347293047,1735662645711,-500.0,0.0002,3]
[347293048,1735662645721,-1000.0,0.0002,20]
[347293049,1735662645730,-500.0,0.0002,3]
[347293050,1735662645740,-500.0,0.0002,3]
[347293051,1735662645749,-500.0,0.0002,3]
[347293052,1735662645760,-500.0,0.0002,3]
[347293053,1735662645771,-500.0,0.0002,3]
[347293054,1735662645782,-680.61,0.0002,3]
[347293055,1735662645791,-500.0,0.0002,3]
[347293056,1735662645802,-500.0,0.0002,3]
[347293057,1735662645812,-1080.08,0.0002,3]
[347293058,1735662645821,-500.0,0.0002,3]
[347293059,1735662645830,-500.0,0.0002,3]
[347293060,1735662645841,-646.51657075,0.0002,3]
[347293061,1735662645850,-500.0,0.0002,3]
[347293062,1735662645859,-500.0,0.0002,3]
[347293063,1735662645868,-1000.0,0.0002,4]
[347293064,1735662645879,-500.0,0.0002,3]
[347293065,1735662645888,-297.23462416,0.0002,3]
[347293066,1735662645900,-509.56546007,0.0002,3]
[347293067,1735662645910,-500.0,0.0002,3]
[347293068,1735662645920,-500.0,0.0002,3]
[347293069,1735662645930,-1024.57,0.0002,3]
[347293070,1735662645940,-500.0,0.0002,3]
[347293071,1735662645949,-500.0,0.0002,3]
[347293072,1735662645958,-2010.2,0.0002,3]
[347293073,1735662645968,-500.0,0.0002,3]
[347293074,1735662645977,-7010.34,0.0002,3]
[347293075,1735662645987,-500.0,0.0002,3]
[347293076,1735662645996,-500.0,0.0002,3]
[347293077,1735662646005,-500.0,0.0002,3]
[347293078,1735662646015,-10949.33,0.0002,3]
[347293079,1735662646024,-500.0,0.0002,3]
[347293080,1735662646032,-500.0,0.0002,3]
[347293081,1735662646042,-500.0,0.0002,3]
[347293082,1735662646051,-500.0,0.0002,3]
[347293083,1735662646060,-599.72,0.0002,3]
[347293084,1735662646070,-1085.45,0.0002,3]
[347293085,1735662646079,-605.99,0.0002,3]
[347293086,1735662646089,-629.41,0.0002,2]
[347293087,1735662646097,-1147.06,0.0002,3]
[347293088,1735662646107,-500.0,0.0002,3]
[347293089,1735662646116,-527.71,0.0002,3]
[347293090,1735662646125,-500.0,0.0002,3]
[347293091,1735662646134,-500.0,0.0002,3]
[347293092,1735662646144,-500.0,0.0002,3]
[347293093,1735662646153,-500.0,0.0002,3]
[347293094,1735662646162,-500.0,0.0002,3]
[347293095,1735662646171,-500.0,0.0002,3]
[347293096,1735662646180,-500.0,0.0002,3]
[347293097,1735662646189,-570.43,0.0002,3]
[347293099,1735662646199,-10934.46,0.0002,3]
[347293100,1735662646207,-709.83,0.0002,3]
[347293101,1735662646217,-500.0,0.0002,3]
[347293102,1735662646226,-500.0,0.0002,3]
[347293104,1735662646235,-695.57,0.0002,3]
[347293106,1735662646243,-500.0,0.0002,3]
[347293107,1735662646253,-500.0,0.0002,3]
[347293108,1735662646263,-500.0,0.0002,3]
[347293109,1735662646272,-500.0,0.0002,3]
[347293110,1735662646282,-1020.13,0.0002,3]
[347293111,1735662646291,-3413.96,0.0002,3]
[347293112,1735662646301,-500.0,0.0002,3]
[347293113,1735662646310,-633.22,0.0002,3]
[347293114,1735662646319,-500.0,0.0002,3]
[347293115,1735662646329,-500.0,0.0002,3]
[347293116,1735662646338,-500.0,0.0002,3]
[347293117,1735662646347,-1197.53,0.0002,3]
[347293118,1735662646357,-500.0,0.0002,3]
[347293119,1735662646366,-500.0,0.0002,3]
[347293120,1735662646376,-500.0,0.0002,3]
[347293121,1735662646386,-500.0,0.0002,3]
[347293122,1735662646395,-668.37,0.0002,3]
[347293123,1735662646404,-1666.23,0.0002,3]
[347293124,1735662646413,-1279.41,0.0002,3]
[347293125,1735662646422,-275.20620864,0.0002,3]
[347293126,1735662646431,-500.0,0.0002,3]
[347293127,1735662646440,-507.84047398,0.0002,3]
[347293128,1735662646450,-500.0,0.0002,3]
[347293129,1735662646459,-500.0,0.0002,3]
[347293130,1735662646469,-500.0,0.0002,3]
[347293131,1735662646479,-1508.05,0.0002,3]
[347293132,1735662646488,-1002.24,0.0002,3]
[347293133,1735662646497,-681.96,0.0002,3]
[347293134,1735662646507,-500.0,0.0002,3]
[347293135,1735662646518,-500.0,0.0002,3]
[347293136,1735662646528,-500.0,0.0002,3]
[347293137,1735662646537,-500.0,0.0002,3]
[347293138,1735662646546,-484.50978505,0.0002,3]
[347293139,1735662646555,-1000.0,0.0002,2]
[347293140,1735662646564,-500.0,0.0002,3]
[347293141,1735662646573,-500.0,0.0002,3]
[347293142,1735662646583,-500.0,0.0002,3]
[347293143,1735662646592,-1257.65,0.0002,3]
[347293144,1735662646602,-500.0,0.0002,3]
[347293145,1735662646611,-963.36,0.0002,3]
[347293146,1735662646620,-716.23,0.0002,3]
[347293147,1735662646630,-500.0,0.0002,3]
[347293148,1735662646640,-500.0,0.0002,3]
[347293149,1735662646649,-500.0,0.0002,3]
[347293150,1735662646658,-188.0,0.0002,2]
[347293151,1735662646667,-1742.86,0.0002,3]
[347293152,1735662646677,-500.0,0.0002,3]
[347293153,1735662646686,-856.35,0.0002,3]
[347293154,1735662646695,-500.0,0.0002,3]
[347293155,1735662646704,-500.0,0.0002,3]
[347293156,1735662646714,-1434.36,0.0002,3]
[347293157,1735662646723,-2488.22,0.0002,3]
[347293158,1735662646732,-500.0,0.0002,3]
[347293159,1735662646741,-500.0,0.0002,3]
[347293160,1735662646751,-1740.67,0.0002,3]
[347293161,1735662646764,-500.0,0.0002,3]
[347293162,1735662646773,-539.03,0.0002,3]
[347293163,1735662646783,-500.0,0.0002,3]
[347293164,1735662646793,-1044.99,0.0002,3]
[347293165,1735662646803,-1735.88,0.0002,3]
[347293166,1735662646812,-500.0,0.0002,3]
[347293167,1735662646823,-500.0,0.0002,3]
[347293168,1735662646833,-500.0,0.0002,3]
[347293169,1735662646843,-1193.26,0.0002,3]
[347293170,1735662646852,-500.0,0.0002,3]
[347293171,1735662646862,-500.0,0.0002,3]
[347293172,1735662646871,-930.72,0.0002,3]
[347293173,1735662646880,-730.35,0.0002,3]
[347293174,1735662646891,-500.0,0.0002,3]
[347293175,1735662646900,-500.0,0.0002,3]
[347293176,1735662646910,-938.16,0.0002,3]
[347293177,1735662646919,-1142.17,0.0002,3]
[347293178,1735662646928,-1023.34,0.0002,3]
[347293179,1735662646938,-500.0,0.0002,3]
[347293180,1735662646947,-661.46,0.0002,3]
[347293181,1735662646957,-500.0,0.0002,3]
[347293182,1735662646966,-1070.42,0.0002,3]
[347293183,1735662646976,-1262.96,0.0002,3]
[347293184,1735662646985,-589.92,0.0002,3]
[347293185,1735662646994,-1803.17,0.0002,3]
[347293186,1735662647003,-500.0,0.0002,3]
[347293187,1735662647013,-500.0,0.0002,3]
[347293188,1735662647023,-500.0,0.0002,3]
[347293189,1735662647032,-3968.83,0.0002,3]
[347293190,1735662647042,-1255.69,0.0002,3]
[347293191,1735662647051,-500.0,0.0002,3]
[347293192,1735662647060,-592.48572394,0.0002,3]
[347293193,1735662647069,-1236.91,0.0002,3]
[347293194,1735662647078,-500.0,0.0002,3]
[347293195,1735662647087,-500.0,0.0002,3]
[347293196,1735662647097,-500.0,0.0002,3]
[347293197,1735662647107,-514.34,0.0002,3]
[347293198,1735662647117,-1076.36,0.0002,3]
[347293199,1735662647126,-500.0,0.0002,3]
[347293200,1735662647136,-506.88712566,0.0002,3]
[347293201,1735662647146,-4001.36196816,0.0002,2]
[347293202,1735662647157,-500.0,0.0002,3]
[347293203,1735662647166,-500.0,0.0002,3]
[347293204,1735662647176,-1079.59,0.0002,3]
[347293205,1735662647290,-500.0,0.0002,3]
[347293206,1735662647299,-9200.12,0.0002,30]